fUSD/lending_fUSD_20250522
["ID","MTS","AMOUNT","RATE_DAILY","PERIOD"]
[362025439,1747938647672,-420.0,0.00036705,5]
[362025441,1747938647682,-723.13,0.00036705,5]
[362025443,1747938647692,-494.6,0.00036705,5]
[362025445,1747938647702,-420.0,0.00036705,5]
[362025447,1747938647712,-420.0,0.00036705,5]
[362025449,1747938647723,-420.0,0.00036705,5]
[362025451,1747938647733,-420.0,0.00036705,5]
[362025453,1747938647743,-1059.84,0.00036705,5]
[362025455,1747938647753,-1876.21,0.00036705,5]
[362025457,1747938647763,-606.83,0.00036705,5]
[362025459,1747938647773,-420.0,0.00036705,5]
[362025461,1747938647783,-420.0,0.00036705,5]
[362025463,1747938647792,-622.13,0.00036705,5]
[362025465,1747938647802,-420.0,0.00036705,5]
[362025467,1747938647814,-420.0,0.00036705,5]
[362025469,1747938647823,-420.0,0.00036705,5]
[362025471,1747938647838,-420.0,0.00036705,5]
[362025473,1747938647848,-420.0,0.00036707,5]
[362025475,1747938647858,-420.0,0.00036707,5]
[362025477,1747938647868,-420.0,0.00036707,5]
[362025479,1747938647877,-420.0,0.00036707,5]
[362025481,1747938647887,-420.0,0.00036707,5]
[362025483,1747938647897,-358.81158304,0.00036707,5]
[362025485,1747938647907,-420.0,0.00036707,5]
[362025487,1747938647916,-420.0,0.00036707,5]
[362025489,1747938647926,-420.0,0.00036707,5]
[362025491,1747938647936,-420.0,0.00036707,5]
[362025493,1747938647946,-420.0,0.00036707,5]
[362025495,1747938647956,-420.0,0.00036707,5]
[362025497,1747938647967,-367.97635549,0.00036707,5]
[362025499,1747938647976,-265.19102381,0.00036707,5]
[362025501,1747938647986,-420.0,0.00036707,5]
[362025503,1747938647995,-420.0,0.00036707,5]
[362025504,1747938648005,-241.74218532,0.00036707,5]
[362025506,1747938648014,-420.0,0.00036707,5]
[362025508,1747938648024,-296.23071041,0.00036707,5]
[362025510,1747938648034,-420.0,0.00036707,5]
[362025512,1747938648043,-465.00422058,0.00036707,5]
[362025514,1747938648053,-420.0,0.00036707,5]
[362025516,1747938648065,-420.0,0.00036707,5]
[362025518,1747938648075,-202.52679758,0.00036707,5]
[362025520,1747938648085,-420.0,0.00036707,5]
[362025522,1747938648094,-420.0,0.00036707,5]
[362025524,1747938648104,-420.0,0.00036707,5]
[362025526,1747938648113,-420.0,0.00036707,5]
[362025528,1747938648124,-420.0,0.00036707,5]
[362025530,1747938648134,-420.0,0.00036707,5]
[362025532,1747938648143,-420.0,0.00036708,5]
[362025534,1747938648153,-420.0,0.00036708,5]
[362025536,1747938648163,-472.0008177,0.00036708,5]
[362025537,1747938648173,-546.1772558,0.00036708,5]
[362025540,1747938648183,-442.02198498,0.00036708,5]
[362025541,1747938648193,-420.0,0.00036708,5]
[362025543,1747938648204,-422.18792562,0.00036708,5]
[362025545,1747938648215,-420.0,0.00036708,5]
[362025547,1747938648225,-430.28226683,0.00036708,5]
[362025549,1747938648234,-420.0,0.00036708,5]
[362025551,1747938648244,-420.0,0.00036708,5]
[362025553,1747938648254,-476.37562738,0.00036712,5]
[362025555,1747938648265,-1473.77,0.00036712,2]
[362025557,1747938648275,-420.0,0.00036712,5]
[362025559,1747938648285,-291.68797185,0.00036831,35]
[362025561,1747938648295,-486.62,0.00036979,5]
[362025563,1747938648305,-420.0,0.00036979,5]
[362025565,1747938648315,-420.0,0.00036979,5]
[362025567,1747938648325,-755.88,0.00036979,5]
[362025569,1747938648335,-420.0,0.00036979,5]
[362025571,1747938648345,-723.13,0.00036979,5]
[362025601,1747938648652,-494.6,0.00036979,5]
[362025603,1747938648663,-420.0,0.00036979,5]
[362025605,1747938648674,-420.0,0.00036979,5]
[362025607,1747938648684,-420.0,0.00036979,5]
[362025608,1747938648695,-420.0,0.00036979,5]
[362025611,1747938648706,-1059.84,0.00036979,5]
[362025612,1747938648716,-420.0,0.00036979,5]
[362025614,1747938648726,-1876.21,0.00036979,5]
[362025616,1747938648736,-606.83,0.00036979,5]
[362025618,1747938648746,-420.0,0.00036979,5]
[362025620,1747938648757,-420.0,0.00036979,5]
[362025622,1747938648767,-622.13,0.00036979,5]
[362025624,1747938648778,-420.0,0.00036979,5]
[362025626,1747938648790,-420.0,0.00036979,5]
[362025628,1747938648800,-411.2445423,0.00036979,5]
[362025630,1747938648811,-420.0,0.00036979,5]
[362025632,1747938648822,-2036.12784412,0.00036979,5]
[362025635,1747938648837,-1473.99215588,0.00036979,5]
[362025637,1747938648847,-420.0,0.00036979,5]
[362025639,1747938648857,-420.0,0.00036981,5]
[362025640,1747938648867,-420.0,0.00036981,5]
[362025642,1747938648877,-178.91565173,0.00036981,5]
[362025645,1747938648888,-420.0,0.00036981,5]
[362025646,1747938648898,-420.0,0.00036981,5]
[362025648,1747938648908,-361.69658924,0.00036981,5]
[362025650,1747938648918,-420.0,0.00036981,5]
[362025652,1747938648928,-420.0,0.00036981,5]
[362025654,1747938648938,-420.0,0.00036981,5]
[362025655,1747938648948,-420.0,0.00036981,5]
[362025657,1747938648959,-420.0,0.00036981,5]
[362025659,1747938648968,-420.0,0.00036981,5]
[362025661,1747938648978,-420.0,0.00036981,5]
[362025663,1747938648988,-420.0,0.00036981,5]
[362025665,1747938648998,-420.0,0.00036981,5]
[362025667,1747938649008,-420.0,0.00036981,5]
[362025669,1747938649018,-420.0,0.00036981,5]
[362025671,1747938649028,-420.0,0.00036981,5]
[362025673,1747938649038,-420.0,0.00036981,5]
[362025675,1747938649048,-420.0,0.00036981,5]
[362025677,1747938649059,-252.57030538,0.00036981,5]
[362025679,1747938649068,-420.0,0.00036981,5]
[362025681,1747938649078,-420.0,0.00036981,5]
[362025683,1747938649088,-420.0,0.00036982,5]
[362025685,1747938649097,-420.0,0.00036982,5]
[362025686,1747938649107,-420.0,0.00036982,5]
[362025688,1747938649117,-420.0,0.00036982,5]
[362025690,1747938649128,-420.0,0.00036982,5]
[362025692,1747938649139,-420.0,0.00036982,5]
[362025694,1747938649149,-600.0,0.00036983,60]
[362025696,1747938649159,-1473.77,0.00036986,2]
[362025698,1747938649170,-430.43071329,0.00036986,5]
[362025700,1747938649180,-150.0,0.00037,10]
[362025702,1747938649190,-330.1407838,0.0003716,2]
[362025703,1747938649200,-31551.74799404,0.00037203,2]
[362025704,1747938649210,-420.0,0.00037243,5]
[362025705,1747938649220,-389.73983647,0.00037243,5]
[362025706,1747938649230,-420.0,0.00037243,5]
[362025707,1747938649240,-420.0,0.00037243,5]
[362025708,1747938649249,-420.0,0.00037243,5]
[362025709,1747938649259,-420.0,0.00037243,5]
[362025710,1747938649269,-420.0,0.00037243,5]
[362025711,1747938649279,-420.0,0.00037243,5]
[362025712,1747938649289,-420.0,0.00037243,5]
[362025713,1747938649298,-420.0,0.00037243,5]
[362025714,1747938649308,-420.0,0.00037243,5]
[362025715,1747938649317,-703.76,0.00037243,5]
[362025716,1747938649328,-420.0,0.00037243,5]
[362025717,1747938649337,-393.80421686,0.00037243,5]
[362025718,1747938649347,-2167.57,0.00037243,5]
[362025719,1747938649356,-420.0,0.00037243,5]
[362025721,1747938649367,-486.62,0.00037253,5]
[362025722,1747938649377,-420.0,0.00037253,5]
[362025724,1747938649387,-420.0,0.00037253,5]
[362025726,1747938649400,-755.88,0.00037253,5]
[362025728,1747938649411,-420.0,0.00037253,5]
[362025730,1747938649421,-723.13,0.00037253,5]
[362025732,1747938649432,-494.6,0.00037253,5]
[362025734,1747938649443,-420.0,0.00037253,5]
[362025736,1747938649453,-420.0,0.00037253,5]
[362025738,1747938649463,-420.0,0.00037253,5]
[362025740,1747938649474,-420.0,0.00037253,5]
[362025742,1747938649484,-1059.84,0.00037253,5]
[362025743,1747938649493,-420.0,0.00037253,5]
[362025746,1747938649504,-1876.21,0.00037253,5]
[362025747,1747938649514,-606.83,0.00037253,5]
[362025749,1747938649535,-420.0,0.00037253,5]
[362025751,1747938649556,-420.0,0.00037253,5]
[362025753,1747938649569,-622.13,0.00037253,5]
[362025755,1747938649579,-420.0,0.00037253,5]
[362025757,1747938649589,-420.0,0.00037253,5]
[362025759,1747938649600,-420.0,0.00037253,5]
[362025761,1747938649610,-3510.12,0.00037253,5]
[362025763,1747938649620,-420.0,0.00037253,5]
[362025765,1747938649630,-420.0,0.00037255,5]
[362025767,1747938649640,-420.0,0.00037255,5]
[362025769,1747938649650,-420.0,0.00037255,5]
[362025771,1747938649660,-420.0,0.00037255,5]
[362025773,1747938649670,-420.0,0.00037255,5]
[362025775,1747938649680,-420.0,0.00037255,5]
[362025777,1747938649690,-420.0,0.00037255,5]
[362025779,1747938649700,-420.0,0.00037255,5]
[362025781,1747938649710,-420.0,0.00037255,5]
[362025782,1747938649719,-420.0,0.00037255,5]
[362025784,1747938649729,-420.0,0.00037255,5]
[362025786,1747938649739,-420.0,0.00037255,5]
[362025788,1747938649749,-408.95420326,0.00037255,5]
[362025790,1747938649758,-462.05334228,0.00037255,5]
[362025792,1747938649769,-420.0,0.00037255,5]
[362025794,1747938649779,-420.0,0.00037255,5]
[362025796,1747938649789,-484.48706065,0.00037255,5]
[362025798,1747938649799,-420.0,0.00037255,5]
[362025800,1747938649809,-420.0,0.00037255,5]
[362025802,1747938649819,-538.7436484,0.00037255,5]
[362025804,1747938649828,-328.69941653,0.00037256,5]
[362025806,1747938649838,-155.06708136,0.00037256,5]
[362025808,1747938649848,-420.0,0.00037256,5]
[362025809,1747938649858,-420.0,0.00037256,5]
[362025811,1747938649868,-420.0,0.00037256,5]
[362025813,1747938649877,-420.0,0.00037256,5]
[362025815,1747938649887,-1473.77,0.0003726,2]
[362025817,1747938649896,-673.33987791,0.00037394,2]
[362025819,1747938649906,-501.0,0.00037491,5]
[362025821,1747938649915,-420.0,0.00037517,5]
[362025823,1747938649924,-420.0,0.00037517,5]
[362025825,1747938649939,-420.0,0.00037517,5]
[362025827,1747938649949,-420.0,0.00037517,5]
[362025829,1747938649959,-420.0,0.00037517,5]
[362025831,1747938649969,-420.0,0.00037517,5]
[362025833,1747938649979,-420.0,0.00037517,5]
[362025836,1747938649989,-262.94420237,0.00037517,5]
[362025837,1747938650000,-420.0,0.00037517,5]
[362025839,1747938650009,-420.0,0.00037517,5]
[362025841,1747938650019,-703.76,0.00037517,5]
[362025843,1747938650029,-420.0,0.00037517,5]
[362025845,1747938650039,-2167.57,0.00037517,5]
[362025847,1747938650048,-420.0,0.00037517,5]
[362025849,1747938650060,-486.62,0.00037527,5]
[362025851,1747938650070,-420.0,0.00037527,5]
[362025853,1747938650080,-420.0,0.00037527,5]
[362025855,1747938650090,-755.88,0.00037527,5]
[362025857,1747938650100,-420.0,0.00037527,5]
[362025859,1747938650110,-723.13,0.00037527,5]
[362025861,1747938650120,-494.6,0.00037527,5]
[362025863,1747938650130,-420.0,0.00037527,5]
[362025865,1747938650140,-420.0,0.00037527,5]
[362025867,1747938650150,-420.0,0.00037527,5]
[362025869,1747938650159,-420.0,0.00037527,5]
[362025871,1747938650169,-1059.84,0.00037527,5]
[362025873,1747938650179,-420.0,0.00037527,5]
[362025875,1747938650189,-1876.21,0.00037527,5]
[362025877,1747938650199,-606.83,0.00037527,5]
[362025879,1747938650209,-420.0,0.00037527,5]
[362025881,1747938650219,-420.0,0.00037527,5]
[362025883,1747938650229,-622.13,0.00037527,5]
[362025884,1747938650239,-420.0,0.00037527,5]
[362025886,1747938650248,-420.0,0.00037527,5]
[362025888,1747938650258,-420.0,0.00037527,5]
[362025890,1747938650267,-3510.12,0.00037527,5]
[362025892,1747938650277,-420.0,0.00037527,5]
[362025894,1747938650287,-150.0,0.00037528,2]
[362025896,1747938650296,-207.4,0.00037528,5]
[362025898,1747938650306,-215.0738,0.00037528,5]
[362025900,1747938650316,-151.0,0.00037528,5]
[362025902,1747938650326,-223.0315306,0.00037528,5]
[362025904,1747938650335,-151.0,0.00037528,5]
[362025906,1747938650345,-231.28369723,0.00037528,5]
[362025908,1747938650355,-1199.20597015,0.00037528,5]
[362025910,1747938650364,-151.0,0.00037528,5]
[362025912,1747938650374,-239.84119403,0.00037528,5]
[362025914,1747938650383,-251.25392465,0.00037528,5]
[362025916,1747938650397,-668.65185757,0.00037528,5]
[362025918,1747938650406,-668.65185757,0.00037528,5]
[362025920,1747938650417,-248.71531821,0.00037528,5]
[362025922,1747938650427,-693.3919763,0.00037528,5]
[362025924,1747938650438,-257.91778498,0.00037528,5]
[362025926,1747938650447,-719.04747942,0.00037528,5]
[362025928,1747938650456,-267.46074303,0.00037528,5]
[362025930,1747938650467,-277.35679052,0.00037528,5]
[362025932,1747938650477,-287.61899177,0.00037528,5]
[362025934,1747938650486,-298.26089446,0.00037528,5]
[362025935,1747938650496,-309.29654756,0.00037528,5]
[362025937,1747938650506,-320.74051982,0.00037528,5]
[362025939,1747938650517,-332.60791905,0.00037528,5]
[362025941,1747938650527,-344.91441206,0.00037528,5]
[362025943,1747938650537,-151.0,0.00037528,5]
[362025945,1747938650546,-357.6762453,0.00037528,5]
[362025947,1747938650556,-370.91026638,0.00037528,5]
[362025949,1747938650567,-384.63394623,0.00037528,5]
[362025951,1747938650578,-398.86540225,0.00037528,5]
[362025953,1747938650588,-222.51346225,0.00037529,2]
[362025955,1747938650598,-420.0,0.00037529,5]
[362025957,1747938650608,-420.0,0.00037529,5]
[362025959,1747938650618,-420.0,0.00037529,5]
[362025961,1747938650627,-420.0,0.00037529,5]
[362025963,1747938650637,-420.0,0.00037529,5]
[362025965,1747938650647,-420.0,0.00037529,5]
[362025967,1747938650656,-420.0,0.00037529,5]
[362025969,1747938650667,-420.0,0.00037529,5]
[362025971,1747938650676,-420.0,0.00037529,5]
[362025973,1747938650687,-351.06745048,0.00037529,5]
[362025975,1747938650697,-420.0,0.00037529,5]
[362025977,1747938650707,-420.0,0.00037529,5]
[362025979,1747938650717,-420.0,0.00037529,5]
[362025980,1747938650727,-420.0,0.00037529,5]
[362025982,1747938650737,-801.58485,0.00037529,2]
[362025984,1747938650747,-420.0,0.00037529,5]
[362025985,1747938650756,-420.0,0.00037529,5]
[362025987,1747938650766,-420.0,0.0003753,5]
[362025988,1747938650775,-311.05784032,0.0003753,5]
[362025990,1747938650784,-175.09837086,0.0003753,5]
[362025992,1747938650794,-420.0,0.0003753,5]
[362025993,1747938650803,-600.0,0.00037531,60]
[362025995,1747938650813,-800.0,0.00037531,60]
[362025997,1747938650823,-500.0,0.00037532,2]
[362025998,1747938650832,-500.0,0.00037532,2]
[362026000,1747938650842,-500.0,0.00037532,2]
[362026001,1747938650851,-500.0,0.00037532,2]
[362026003,1747938650861,-500.0,0.00037532,2]
[362026005,1747938650870,-500.0,0.00037532,2]
[362026006,1747938650880,-500.0,0.00037532,2]
[362026008,1747938650890,-500.0,0.00037532,2]
[362026009,1747938650899,-500.0,0.00037532,2]
[362026011,1747938650909,-500.0,0.00037532,2]
[362026013,1747938650918,-500.0,0.00037532,2]
[362026014,1747938650928,-500.0,0.00037532,2]
[362026016,1747938650937,-500.0,0.00037532,2]
[362026017,1747938650947,-500.0,0.00037532,2]
[362026019,1747938650956,-500.0,0.00037532,2]
[362026021,1747938650966,-500.0,0.00037532,2]
[362026022,1747938650975,-500.0,0.00037532,2]
[362026024,1747938650985,-500.0,0.00037532,2]
[362026026,1747938650994,-500.0,0.00037532,2]
[362026027,1747938651004,-500.0,0.00037532,2]
[362026029,1747938651013,-500.0,0.00037532,2]
[362026031,1747938651023,-500.0,0.00037532,2]
[362026033,1747938651032,-500.0,0.00037532,2]
[362026034,1747938651042,-500.0,0.00037532,2]
[362026035,1747938651051,-500.0,0.00037532,2]
[362026037,1747938651062,-500.0,0.00037532,2]
[362026038,1747938651072,-500.0,0.00037532,2]
[362026040,1747938651082,-500.0,0.00037532,2]
[362026041,1747938651091,-500.0,0.00037532,2]
[362026046,1747938651157,-500.0,0.00037532,2]
[362026047,1747938651166,-500.0,0.00037532,2]
[362026049,1747938651176,-500.0,0.00037532,2]
[362026050,1747938651185,-500.0,0.00037532,2]
[362026052,1747938651194,-500.0,0.00037532,2]
[362026054,1747938651204,-500.0,0.00037532,2]
[362026056,1747938651213,-500.0,0.00037532,2]
[362026057,1747938651223,-500.0,0.00037532,2]
[362026059,1747938651232,-500.0,0.00037532,2]
[362026060,1747938651241,-500.0,0.00037532,2]
[362026062,1747938651251,-596.0,0.00037532,2]
[362026064,1747938651260,-500.0,0.00037532,2]
[362026065,1747938651269,-500.0,0.00037532,2]
[362026067,1747938651278,-500.0,0.00037532,2]
[362026069,1747938651289,-500.0,0.00037532,2]
[362026070,1747938651298,-500.0,0.00037532,2]
[362026072,1747938651307,-500.0,0.00037532,2]
[362026074,1747938651318,-500.0,0.00037532,2]
[362026075,1747938651327,-500.0,0.00037532,2]
[362026077,1747938651337,-500.0,0.00037532,2]
[362026079,1747938651346,-500.0,0.00037532,2]
[362026081,1747938651355,-500.0,0.00037532,2]
[362026082,1747938651365,-420.0,0.00037534,14]
[362026084,1747938651375,-758.4180201,0.00037534,2]
[362026094,1747938651522,-715.3519799,0.00037534,2]
[362026096,1747938651532,-242.42716728,0.00037537,2]
[362026098,1747938651543,-18749.03620532,0.00037537,2]
[362026100,1747938651553,-270.4733189,0.00037564,2]
[362026102,1747938651567,-457.9579254,0.00037564,2]
[362026103,1747938651577,-1662.5839164,0.00037564,2]
[362026105,1747938651586,-2633.48701848,0.0003759,2]
[362026107,1747938651598,-1583.5352477,0.0003759,2]
[362026108,1747938651607,-1174.14,0.000376,2]
[362026110,1747938651617,-536.77034725,0.000376,2]
[362026111,1747938651628,-602.0,0.000376,2]
[362026113,1747938651640,-375.33965275,0.000376,2]
[362026115,1747938651649,-124.66034725,0.000376,2]
[362026120,1747938651704,-1514.82581629,0.000376,2]
[362026121,1747938651715,-1697.24383646,0.000376,2]
[362026123,1747938651725,-644.79446246,0.00037613,37]
[362026125,1747938651735,-644.79446246,0.00037613,37]
[362026126,1747938651744,-300.0,0.00037613,37]
[362026128,1747938651755,-621.78829552,0.00037626,30]
[362026130,1747938651765,-621.78829552,0.00037626,30]
[362026131,1747938651774,-300.0,0.00037626,30]
[362026133,1747938651784,-500.0,0.00037639,7]
[362026135,1747938651793,-291.68797185,0.00037728,37]
[362026137,1747938651803,-279.3376048,0.00037757,7]
[362026139,1747938651816,-820.6623952,0.00037757,7]
[362026140,1747938651825,-500.0,0.0003779,7]
[362026142,1747938651835,-266.37120137,0.00037791,5]
[362026144,1747938651846,-259.80845049,0.00037791,5]
[362026145,1747938651855,-456.34322362,0.00037791,5]
[362026147,1747938651864,-420.0,0.00037791,5]
[362026149,1747938651873,-101.16156005,0.00037791,5]
[362026151,1747938651884,-318.83843995,0.00037791,5]
[362026152,1747938651894,-420.0,0.00037791,5]
[362026154,1747938651904,-420.0,0.00037791,5]
[362026156,1747938651913,-420.0,0.00037791,5]
[362026157,1747938651922,-497.61900599,0.00037791,5]
[362026159,1747938651931,-420.0,0.00037791,5]
[362026161,1747938651940,-703.76,0.00037791,5]
[362026162,1747938651950,-420.0,0.00037791,5]
[362026164,1747938651959,-2167.57,0.00037791,5]
[362026166,1747938651969,-420.0,0.00037791,5]
[362026167,1747938651978,-486.62,0.00037801,5]
[362026169,1747938651987,-420.0,0.00037801,5]
[362026171,1747938651996,-420.0,0.00037801,5]
[362026173,1747938652005,-755.88,0.00037801,5]
[362026174,1747938652014,-420.0,0.00037801,5]
[362026176,1747938652024,-723.13,0.00037801,5]
[362026178,1747938652033,-494.6,0.00037801,5]
[362026180,1747938652042,-420.0,0.00037801,5]
[362026181,1747938652051,-420.0,0.00037801,5]
[362026183,1747938652066,-420.0,0.00037801,5]
[362026185,1747938652075,-420.0,0.00037801,5]
[362026187,1747938652084,-1059.84,0.00037801,5]
[362026188,1747938652093,-420.0,0.00037801,5]
[362026190,1747938652102,-1876.21,0.00037801,5]
[362026192,1747938652112,-606.83,0.00037801,5]
[362026194,1747938652121,-420.0,0.00037801,5]
[362026195,1747938652131,-420.0,0.00037801,5]
[362026197,1747938652140,-622.13,0.00037801,5]
[362026199,1747938652149,-420.0,0.00037801,5]
[362026201,1747938652159,-420.0,0.00037801,5]
[362026202,1747938652168,-420.0,0.00037801,5]
[362026204,1747938652178,-3510.12,0.00037801,5]
[362026206,1747938652187,-420.0,0.00037801,5]
[362026207,1747938652196,-420.0,0.00037803,5]
[362026209,1747938652206,-420.0,0.00037803,5]
[362026211,1747938652215,-312.3122831,0.00037803,5]
[362026213,1747938652225,-420.0,0.00037803,5]
[362026214,1747938652234,-420.0,0.00037803,5]
[362026216,1747938652243,-420.0,0.00037803,5]
[362026218,1747938652252,-503.37759447,0.00037803,5]
[362026220,1747938652261,-420.0,0.00037803,5]
[362026221,1747938652270,-420.0,0.00037803,5]
[362026223,1747938652279,-420.0,0.00037803,5]
[362026225,1747938652288,-237.0100772,0.00037803,5]
[362026236,1747938652422,-199.5604233,0.00027614,2]
[362026238,1747938652431,-420.0,0.00032876,5]
[362026239,1747938652442,-420.0,0.00032876,5]
[362026241,1747938652451,-336.2376747,0.0003315,5]
[362026243,1747938652468,-83.7623253,0.0003315,5]
[362026245,1747938652478,-420.0,0.0003315,5]
[362026247,1747938652489,-420.0,0.00033972,5]
[362026249,1747938652498,-420.0,0.00034246,5]
[362026251,1747938652508,-420.0,0.0003452,5]
[362026252,1747938652517,-420.0,0.00034794,5]
[362026253,1747938652527,-367.71263121,0.00035068,5]
[362026254,1747938652536,-200.0,0.00035486,13]
[362026255,1747938652547,-200.0,0.00035486,13]
[362026256,1747938652556,-200.0,0.00035486,13]
[362026257,1747938652567,-200.0,0.00035486,13]
[362026258,1747938652576,-420.0,0.00036433,5]
[362026259,1747938652586,-420.0,0.00036707,5]
[362026260,1747938652595,-420.0,0.00036981,5]
[362026261,1747938652606,-244.02718142,0.00037255,5]
[362026262,1747938652617,-35.15369465,0.00037803,5]
[362026263,1747938652627,-420.0,0.00037803,5]
[362026264,1747938652637,-420.0,0.00037803,5]
[362026265,1747938652647,-420.0,0.00037803,5]
[362026266,1747938652656,-420.0,0.00037803,5]
[362026267,1747938652666,-420.0,0.00037804,5]
[362026268,1747938652676,-420.0,0.00037804,5]
[362026269,1747938652686,-420.0,0.00037808,14]
[362026270,1747938652695,-588.0,0.00037808,5]
[362026271,1747938652706,-588.0,0.00037808,5]
[362026272,1747938652717,-588.0,0.00037808,5]
[362026274,1747938652726,-588.0,0.00037808,5]
[362026275,1747938652735,-588.0,0.00037808,5]
[362026276,1747938652745,-588.0,0.00037808,5]
[362026278,1747938652754,-588.0,0.00037808,5]
[362026280,1747938652764,-1473.77,0.00037808,2]
[362026282,1747938652774,-1100.0,0.0003783,7]
[362026284,1747938652783,-15223.4161493,0.00037847,2]
[362026286,1747938652793,-907.7736056,0.00037847,2]
[362026288,1747938652803,-2071.9179857,0.00037847,2]
[362026290,1747938652813,-1774.34,0.00037873,2]
[362026291,1747938652822,-265.77,0.00037873,2]
[362026292,1747938652831,-299.99,0.00037873,30]
[362026293,1747938652840,-9999.99,0.00037873,2]
[362026294,1747938652850,-150.99,0.00037873,2]
[362026295,1747938652860,-9999.99,0.00037873,2]
[362026296,1747938652870,-6551.2,0.00037873,2]
[362026297,1747938652879,-897.21,0.00037873,2]
[362026298,1747938652889,-28169.16,0.00037873,10]
[362026299,1747938652898,-11455.3689259,0.00037874,2]
[362026300,1747938652908,-1087.1159669,0.00037874,2]
[362026301,1747938652918,-2481.252055,0.00037874,2]
[362026302,1747938652928,-7000.0,0.0003788,120]
[362026303,1747938652938,-1514.11,0.000379,2]
[362026304,1747938652947,-160.0,0.000379,23]
[362026305,1747938652957,-78151.40573178,0.000379,2]
[362026306,1747938652967,-20000.0,0.000379,120]
[362026307,1747938652976,-500.0,0.00037918,7]
[362026308,1747938652986,-7687.3217026,0.00037964,2]
[362026309,1747938652995,-1000.0,0.00037965,2]
[362026310,1747938653004,-900.0,0.00038,39]
[362026311,1747938653014,-1531.7357709,0.00038,2]
[362026312,1747938653024,-2000.0,0.00038,120]
[362026313,1747938653034,-2000.0,0.00038,120]
[362026314,1747938653043,-300.0,0.00038,120]
[362026315,1747938653053,-30000.0,0.00038,120]
[362026316,1747938653063,-1000.0,0.00038,2]
[362026317,1747938653072,-150.0,0.00038,10]
[362026318,1747938653081,-1266.4583283,0.0003803,2]
[362026319,1747938653091,-2890.5861242,0.0003803,2]
[362026320,1747938653100,-12500.0,0.00038047,5]
[362026321,1747938653110,-12500.0,0.00038047,5]
[362026322,1747938653119,-3919.2744793,0.00038047,2]
[362026323,1747938653129,-1445.8006896,0.00038051,2]
[362026324,1747938653139,-3299.9201935,0.00038051,2]
[362026325,1747938653148,-12500.0,0.00038056,5]
[362026326,1747938653158,-12500.0,0.00038056,5]
[362026327,1747938653167,-151.0,0.00038064,7]
[362026328,1747938653177,-12500.0,0.00038064,5]
[362026329,1747938653186,-12500.0,0.00038064,5]
[362026330,1747938653196,-420.0,0.00038065,5]
[362026331,1747938653206,-420.0,0.00038065,5]
[362026332,1747938653216,-420.0,0.00038065,5]
[362026333,1747938653225,-420.0,0.00038065,5]
[362026334,1747938653235,-420.0,0.00038065,5]
[362026335,1747938653244,-420.0,0.00038065,5]
[362026336,1747938653254,-703.76,0.00038065,5]
[362026337,1747938653264,-420.0,0.00038065,5]
[362026339,1747938653273,-2167.57,0.00038065,5]
[362026341,1747938653284,-420.0,0.00038065,5]
[362026343,1747938653293,-12500.0,0.00038073,5]
[362026345,1747938653303,-12500.0,0.00038073,5]